Cogmind - Beta 16 @@@ ROGUE MODE // 2025.12.19 @ 20:57:34 Player: Compilatron Result: Destroyed by P-80 Master with Gamma Rifle Performance ------------- Evolutions (8) 4000 Regions Visited (17) 3400 Robots Destroyed (80) 400 Value Destroyed (3205) 3205 Prototype IDs (6) 120 Alien Tech Used (0) 0 Bonus (1358) 1358 TOTAL SCORE: 12483 Bonus ------- High Alert Combat Kills 91 Follower Combat Kills 77 Entered Garrisons 200 Used RIF Installer 1000 Friendly Fire -10 Cogmind --------- Core Integrity 0/1450 Matter 78/300 Energy 99/100 System Corruption 10% Temperature Cool (0) Movement Core (50) Location -2/Research Parts ------- > --- POWER (2) -------- (None) > --- PROPULSION (8) --- (None) > --- UTILITY (10) ----- Advanced Signal Interpreter Advanced Terrain Scan Processor Hacking Suite Relay Coupler [NC] (18) > --- WEAPON (3) ------- (None) > --- INVENTORY (5) ---- Launcher Guidance Computer High-powered Disruptor Cannon Shock Bomb Launcher Advanced Remote Datajack Peak State ------------ > --- POWER ------------ Micro Nuclear Core Light Particle Reactor > --- PROPULSION ------- Improved Surge Thruster Cooled Impulse Thruster Impulse Thruster Array Impulse Thruster Array Impulse Thruster Array > --- UTILITY ---------- Large Storage Unit Advanced Sensor Array Advanced Signal Interpreter Advanced Terrain Scan Processor Improved Thermal Shield Hacking Suite Relay Coupler [NC] Relay Coupler [Swarmer] > --- WEAPON ----------- Backup Laser VII High-powered Disruptor Cannon > --- INVENTORY -------- Impulse Thruster Q-thruster Launcher Guidance Computer Advanced Point Defense System Heavy Laser Backup Laser VII Railgun Hypervelocity Gauss Cannon Shock Bomb Launcher Micro-nuke Launcher Advanced Remote Datajack [Rating: 141] Favorites ----------- Power Fission Core Engine Ion Engine Power Core Fission Core Reactor Light Particle Reactor Propulsion Light Treads Treads Light Treads Leg Aluminum Leg Wheel Armored Wheel Flight Unit VTOL Module Utility Medium Storage Unit Device Sensor Array Storage Medium Storage Unit Processor Signal Interpreter Hackware Relay Coupler [NC] Protection Hardened Light Armor Plating Weapon Shotgun Energy Gun Heavy Laser Energy Cannon Ion Cannon Ballistic Gun Shotgun Ballistic Cannon Bore Cannon Launcher Micro-nuke Launcher Special Weapon Plasma Cutter Piercing Weapon Spear Special Melee Weapon Improved Datajack Build | -11 -10 -9 -8 -8 -7 -6 -6 -6 -5 -5 -5 -4 -4 -4 -3 -3 -2 ------- Run | Yrd Mat Mat Mat Gar Fac Fac Low Low Fac Ext Cet Fac Was Fac Res Tes Res Slots Evolved 16 | . . 2 2 . 2 2 . . 2 . . 2 . . 2 . 2 Power 1 | . . . . . . . . . 1 . . . . . . . . Propulsion 6 | . . 1 1 . . 2 . . . . . 2 . . . . . Utility 8 | . . 1 1 . 2 . . . 1 . . . . . 2 . 1 Weapon 1 | . . . . . . . . . . . . . . . . . 1 Parts Attached 120 | 1 4 13 5 12 20 10 3 2 2 2 . 3 . 20 9 2 12 Power 13 | 1 1 1 1 1 3 . . . . . . . . 2 1 . 2 Engine 5 | 1 1 1 1 . 1 . . . . . . . . . . . . Core 5 | . . . . 1 2 . . . . . . . . 2 . . . Reactor 3 | . . . . . . . . . . . . . . . 1 . 2 Propulsion 47 | . 1 4 2 5 8 3 2 2 . 1 . 1 . 7 5 1 5 Treads 11 | . . 2 1 1 . 2 2 1 . 1 . . . . 1 . . Leg 10 | . 1 1 . 4 3 . . . . . . . . . 1 . . Wheel 3 | . . 1 . . 1 1 . . . . . . . . . . . Hover . | . . . . . . . . . . . . . . . . . . Flight 23 | . . . 1 . 4 . . 1 . . . 1 . 7 3 1 5 Utility 36 | . 2 3 1 2 7 4 1 . 2 . . 2 . 6 2 1 3 Device 12 | . 1 1 . 1 2 . . . 1 . . 1 . 1 1 . 3 Storage 3 | . 1 . . . 1 . . . . . . . . . 1 . . Processor 9 | . . 2 1 . 2 . . . 1 . . 1 . 1 . 1 . Hackware 7 | . . . . . 2 1 . . . . . . . 4 . . . Protection 5 | . . . . 1 . 3 1 . . . . . . . . . . Artifact . | . . . . . . . . . . . . . . . . . . Weapon 24 | . . 5 1 4 2 3 . . . 1 . . . 5 1 . 2 Energy Gun 2 | . . . . 1 . 1 . . . . . . . . . . . Energy Cannon 5 | . . . 1 . . . . . . . . . . 2 . . 2 Ballistic Gun 6 | . . 3 . 1 1 . . . . . . . . . 1 . . Ballistic Cannon 1 | . . . . 1 . . . . . . . . . . . . . Launcher 4 | . . . . 1 . . . . . . . . . 3 . . . Special Weapon 3 | . . 1 . . 1 . . . . 1 . . . . . . . Impact Weapon . | . . . . . . . . . . . . . . . . . . Slashing Weapon . | . . . . . . . . . . . . . . . . . . Piercing Weapon 1 | . . . . . . 1 . . . . . . . . . . . Special Melee Weapon 2 | . . 1 . . . 1 . . . . . . . . . . . Unidentified Prototypes 4 | . . . 1 . . . . . . . . . . . . 2 1 Parts Lost 71 | . . 5 . 4 12 5 11 1 . 3 1 . 1 11 . 1 16 Power 6 | . . 1 . . 1 . 1 . . . . . . 1 . . 2 Propulsion 29 | . . 1 . 3 6 1 2 1 . 2 1 . . 5 . . 7 Utility 22 | . . 1 . 1 3 2 5 . . 1 . . 1 2 . 1 5 Weapon 14 | . . 2 . . 2 2 3 . . . . . . 3 . . 2 Highest Loss Streak 14 | . . 4 . 3 4 5 10 1 . 3 1 . 1 5 . 1 14 To Critical Strikes 3 | . . . . . . . 2 . . . . . . . . . 1 Average Backups 8 | 6 8 7 9 9 8 8 6 4 4 5 5 5 5 3 3 7 10 Power . | 1 . 1 1 1 . . . . . . 1 1 1 . . . . Propulsion 1 | 4 4 1 1 1 1 1 1 . . . . . . . . . 1 Utility 2 | . 2 2 2 3 4 3 2 2 2 2 2 2 2 . . . 1 Weapon 2 | 1 1 . 1 3 2 2 2 2 2 2 2 2 2 3 2 4 5 Tool/Special . | . . . . . . . . . . . . . . . . . . Unused Backups 16 | . 5 2 1 1 1 . 1 . . . . . . . . . 5 Power 1 | . 1 . . . . . . . . . . . . . . . . Propulsion 4 | . 2 2 . . . . . . . . . . . . . . . Utility 6 | . 2 . 1 . 1 . 1 . . . . . . . . . 1 Weapon 4 | . . . . 1 . . . . . . . . . . . . 3 Tool/Special 1 | . . . . . . . . . . . . . . . . . 1 Average Slot Usage (%) 76 | . 98 91 94 97 85 80 33 15 17 13 15 14 23 44 60 74 53 Engine 2 | . 14 6 9 3 . . . . . . . . . . . . . Core 3 | . . . . 5 5 6 1 . . . . . . 3 4 4 2 Treads 9 | . . 18 27 24 . 6 10 2 . . 3 . . . . . . Leg 6 | . 28 4 . 7 9 9 3 . . . . . . . 2 . . Wheel 2 | . . 9 9 2 1 5 . . . . . . . . . . . Flight 7 | . . . . . 16 6 . 6 11 4 . 2 5 14 15 23 14 Device 6 | . 13 7 9 2 10 3 . . 3 1 . 1 3 . 6 8 5 Storage 6 | . 14 11 9 9 7 6 3 . . . . . . . . 4 2 Processor 9 | . . 11 12 18 9 9 1 . . 5 5 6 10 10 11 9 8 Hackware 5 | . . . . . 13 8 1 . . . . . . 8 14 14 11 Protection 1 | . . . . 6 . 5 4 6 1 . . . . 1 . . . Energy Gun 2 | . 14 . . 5 . 3 1 . . . . . . . . 3 2 Energy Cannon 1 | . . . 6 . 4 . . . . . . . . 1 . . 1 Ballistic Gun 4 | . 14 14 11 3 1 2 . . . . . . . . 2 . . Ballistic Cannon 1 | . . . . 5 . . . . . . . . . . . . . Special Weapon 1 | . . 6 . 1 . . 1 . . . 5 5 3 . . . . Peak Build Rating 141 | 6 8 14 20 28 35 43 40 17 17 16 15 30 30 74 105 122 141 Average Rating 31 | 6 7 11 17 24 30 35 14 13 12 9 13 17 25 47 69 111 92 On Entrance 29 | 6 6 8 14 20 28 29 40 6 13 16 15 11 30 17 41 105 118 Avg Prop Armor Cover (%) 13 | . . 19 23 17 4 16 12 13 . . 27 . . 12 11 . 8 Naked Turns 69 | . . . . . . . 69 . . . . . . . . . . Heaviest Build 64 | 14 20 24 29 38 35 33 33 8 8 4 4 7 7 24 49 51 64 Greatest Support 84 | 20 20 30 12 80 40 30 84 10 10 28 3 7 7 32 56 59 72 Greatest Overweight (x) 8 | . . 1 2 3 8 2 2 2 . 1 1 1 . . . . 1 Average Overweight (x) . | . . . 1 . . 1 . . . . 1 . . . . . . Largest Inventory Capacity 15 | 8 10 10 10 10 10 10 10 5 5 5 5 5 5 5 15 15 15 Average Capacity 9 | 8 9 10 10 10 10 10 8 5 5 5 5 5 5 5 5 15 12 Most Carried 15 | 6 10 9 10 10 10 10 10 5 5 5 5 5 5 5 5 12 15 Average Carried 8 | 6 8 7 9 9 8 8 6 4 4 4 5 5 5 3 3 8 11 Final Capacity 15 | 8 10 10 10 10 10 10 5 5 5 5 5 5 5 5 15 15 5 Final Carried 12 | 6 10 9 10 10 10 8 5 4 5 5 5 5 5 4 3 12 5 Class Distribution -------------------- 63% | Mutant 22% | Scavenger-Mutant 12% | Sprinter Dominant Class ---------------- Mutant | -10/Materials Mutant | -9/Materials Mutant | -8/Materials Scavenger-Mutant | -8/Garrison Mutant | -7/Factory Scavenger-Mutant | -6/Factory Mutant | -6/Lower Caves Sprinter | -6/Lower Caves Sprinter | -5/Factory Mutant | -5/Extension Mutant | -5/Cetus Mutant | -4/Factory Mutant | -4/Waste Mutant | -4/Factory Mutant | -3/Research Sprinter | -3/Testing Mutant | -2/Research Resources | -11 -10 -9 -8 -8 -7 -6 -6 -6 -5 -5 -5 -4 -4 -4 -3 -3 -2 ----------- Run | Yrd Mat Mat Mat Gar Fac Fac Low Low Fac Ext Cet Fac Was Fac Res Tes Res Matter Collected 2876 | 192 283 356 66 550 550 245 133 . . . . . . 239 112 62 88 Remotely . | . . . . . . . . . . . . . . . . . . Salvage Created 2999 | . 352 624 52 546 583 295 192 . . . . . . 293 . 62 . Parts 171 | . 31 37 1 31 28 14 6 . . . . . . 21 . 2 . Haulers Intercepted . | . . . . . . . . . . . . . . . . . . Recyclers Shooed . | . . . . . . . . . . . . . . . . . . Parts Field Recycled . | . . . . . . . . . . . . . . . . . . Retrieved Matter . | . . . . . . . . . . . . . . . . . . Parts Self-Destructed 1 | . . . . . . . 1 . . . . . . . . . . Prevented . | . . . . . . . . . . . . . . . . . . Parts Restored . | . . . . . . . . . . . . . . . . . . Kills | -11 -10 -9 -8 -8 -7 -6 -6 -6 -5 -5 -5 -4 -4 -4 -3 -3 -2 ------- Run | Yrd Mat Mat Mat Gar Fac Fac Low Low Fac Ext Cet Fac Was Fac Res Tes Res Combat Hostiles Destroyed 78 | . 11 18 1 16 13 6 3 . . . . . . 9 . 1 . Melee 3 | . . . . . . . 3 . . . . . . . . . . Guns 48 | . 11 17 . 11 3 5 . . . . . . . . . 1 . Cannons 15 | . . . 1 4 9 . . . . . . . . 1 . . . AOE 10 | . . 1 . 1 . . . . . . . . . 8 . . . Classes Destroyed 10 | . 2 2 . 1 1 1 1 . . . . . . 2 . . . Recycler 2 | . . 1 . . 1 . . . . . . . . . . . . Swarmer 21 | . 4 9 . 5 3 . . . . . . . . . . . . Cutter 5 | . . . . . . . . . . . . . . 5 . . . Grunt 27 | . 7 5 . 6 5 2 . . . . . . . 2 . . . Brawler 2 | . . . . . . 1 . . . . . . . 1 . . . Duelist 1 | . . . . . . . . . . . . . . 1 . . . Sentry 8 | . . 4 1 2 . 1 . . . . . . . . . . . Hunter 3 | . . . . . 3 . . . . . . . . . . . . Programmer 8 | . . . . 3 2 2 . . . . . . . . . 1 . Savage 2 | . . . . . . . 2 . . . . . . . . . . Mutant 1 | . . . . . . . 1 . . . . . . . . . . Best Kill Streak 6 | . 4 6 1 5 2 2 1 . . . . . . 6 . 1 . Combat Bots Only 6 | . 4 6 1 5 2 2 1 . . . . . . 6 . 1 . Max Kills in Single Turn 2 | . 1 1 1 2 1 1 1 . . . . . . 2 . 1 . Gunslinging 1 | . . . . 1 . . . . . . . . . . . . . Exploded 2 | . . 1 . 1 . . . . . . . . . 2 . . . Melee 1 | . . . . . . . 1 . . . . . . . . . . Uniques/NPCs Destroyed . | . . . . . . . . . . . . . . . . . . Combat | -11 -10 -9 -8 -8 -7 -6 -6 -6 -5 -5 -5 -4 -4 -4 -3 -3 -2 -------- Run | Yrd Mat Mat Mat Gar Fac Fac Low Low Fac Ext Cet Fac Was Fac Res Tes Res Hostile Shots Fired 1074 | . 30 107 10 78 166 90 118 18 . 65 18 . 1 80 . 38 255 Missed 428 | . 5 33 1 22 65 24 49 11 . 34 6 . . 37 . 20 121 Hits 646 | . 25 74 9 56 101 66 69 7 . 31 12 . 1 43 . 18 134 Melee 34 | . . . . . . 2 24 . . . . . 1 7 . . . Projectile 612 | . 25 74 9 56 101 64 45 7 . 31 12 . . 36 . 18 134 AOE 5 | . . . . . . . . . . . . . . 5 . . . Critical Strikes 39 | . . 2 1 3 . 4 12 . . . 1 . . 7 . . 9 Part Disruptions 2 | . . . . . . . 1 . . . . . . . . 1 . Damage Taken 11972 | . 257 772 131 739 1482 906 1677 56 . 737 346 . 50 1409 . 383 3027 Core 4339 | . 76 164 16 133 410 136 525 . . 566 173 . 50 495 . 139 1456 Absorbed by Shields 75 | . . . . . . . . . . . . . . 11 . . 64 Ignored by Resistances 69 | . . . . . . . . . . . . . . . . . 69 Regen/Repaired (Parts) 106 | . 22 . . . 18 66 . . . . . . . . . . . Core Remaining (%) 58 | 100 69 59 . 72 41 . . 22 . . 26 . . 52 . 89 . Volleys Fired 307 | . 25 46 4 59 105 37 2 . . . . . . 15 . 13 1 Largest 2 | . 2 2 2 2 2 1 1 . . . . . . 1 . 2 2 Hottest 169 | . 70 70 83 117 129 80 5 . . . . . . 88 . 100 169 Shots Fired 423 | . 50 79 8 92 115 39 2 . . . . . . 15 . 21 2 Gun 297 | . 50 78 4 57 48 39 . . . . . . . . . 21 . Cannon 100 | . . . 4 32 60 . . . . . . . . 3 . . 1 Launcher 14 | . . . . 1 . . . . . . . . . 12 . . 1 Special 12 | . . 1 . 2 7 . 2 . . . . . . . . . . Kinetic 226 | . 25 69 4 68 44 11 . . . . . . . . . 5 . Thermal 171 | . 25 10 4 23 64 28 . . . . . . . . . 16 1 Explosive 13 | . . . . . . . . . . . . . . 12 . . 1 Electromagnetic 4 | . . . . 1 . . . . . . . . . 3 . . . Robot Hit Streak 19 | . 6 12 7 10 6 19 1 . . . . . . 5 . 6 . Robot Miss Streak 9 | . 2 5 1 5 9 3 1 . . . . . . 1 . 3 2 Penetration Max 1 | . . . . 1 . . . . . . . . . . . . . Secondary Targets 4 | . . 2 . 2 . . . . . . . . . . . . . Max Gunslinging Chain 1 | . . 1 . 1 . . . . . . . . . . . . . Shots Hit Robots 279 | . 30 54 6 44 66 37 21 . . . . . . 10 . 11 . Core Hits 161 | . 17 31 2 30 28 24 5 . . . . . . 21 . 3 . Critical Kills 3 | . . . . 3 . . . . . . . . . . . . . Critical Parts Destroyed 4 | . . . . 4 . . . . . . . . . . . . . Critical Strikes 13 | . 1 2 . 7 . . 3 . . . . . . . . . . Burn 3 | . 1 2 . . . . . . . . . . . . . . . Destroy 7 | . . . . 7 . . . . . . . . . . . . . Impale 3 | . . . . . . . 3 . . . . . . . . . . Melee Attacks 28 | . . 2 . . . 1 25 . . . . . . . . . . Impact . | . . . . . . . . . . . . . . . . . . Slashing . | . . . . . . . . . . . . . . . . . . Piercing 25 | . . . . . . . 25 . . . . . . . . . . Sneak Attacks 1 | . . 1 . . . . . . . . . . . . . . . Combat Hostiles . | . . . . . . . . . . . . . . . . . . Follow-up Attacks . | . . . . . . . . . . . . . . . . . . Damage Inflicted 6531 | . 374 930 120 887 1316 817 561 . . . . . . 1244 . 264 18 Guns 3409 | . 374 817 52 626 459 817 . . . . . . . . . 264 . Cannons 1180 | . . . 68 221 857 . . . . . . . . 34 . . . Explosions 1363 | . . 113 . 40 . . . . . . . . . 1210 . . . Melee 561 | . . . . . . . 561 . . . . . . . . . . Ramming 18 | . . . . . . . . . . . . . . . . . 18 Kinetic 2287 | . 147 732 52 660 483 213 . . . . . . . . . . . Thermal 2501 | . 227 198 68 187 833 604 . . . . . . . 120 . 264 . Explosive 1090 | . . . . . . . . . . . . . . 1090 . . . Electromagnetic 74 | . . . . 40 . . . . . . . . . 34 . . . Impact . | . . . . . . . . . . . . . . . . . . Slashing . | . . . . . . . . . . . . . . . . . . Piercing 561 | . . . . . . . 561 . . . . . . . . . . Highest Corruption 47 | . . . . 1 . 14 47 47 . . . . . 4 . 4 10 Average Corruption 11 | . . . . 1 . 10 39 47 . . . . . 2 . 2 4 Corruption Purged . | . . . . . . . . . . . . . . . . . . Corruption Blocked . | . . . . . . . . . . . . . . . . . . Effects 60 | . . . . 2 . 12 36 2 . . . . . 1 . 2 5 Message Errors 17 | . . . . . . 2 10 2 . . . . . 1 . 1 1 Matter Fused 8 | . . . . . . 3 5 . . . . . . . . . . Heat Flow Errors 5 | . . . . . . 3 2 . . . . . . . . . . Energy Discharges 5 | . . . . 1 . 1 3 . . . . . . . . . . Parts Rejected 3 | . . . . . . . 1 . . . . . . . . . 2 Data Loss (minor) 4 | . . . . . . . 2 . . . . . . . . 1 1 Data Loss (major) 2 | . . . . . . 1 . . . . . . . . . . 1 Misfires 3 | . . . . 1 . 2 . . . . . . . . . . . Misdirections 13 | . . . . . . . 13 . . . . . . . . . . Overload Shots . | . . . . . . . . . . . . . . . . . . Overflow Damage 117 | . . . . 14 8 . 13 . . . . . . 82 . . . Projectiles 22 | . . . . 14 8 . . . . . . . . . . . . Explosions 82 | . . . . . . . . . . . . . . 82 . . . Melee 13 | . . . . . . . 13 . . . . . . . . . . Knockbacks 2 | . . . . 1 . . . . . . . . . . . . 1 Impact 1 | . . . . . . . . . . . . . . . . . 1 Kinetic 1 | . . . . 1 . . . . . . . . . . . . . Secondary . | . . . . . . . . . . . . . . . . . . Self-Inflicted Damage 404 | . . . . 8 . . . . . . . . . 375 . . 21 Shots 8 | . . . . 1 . . . . . . . . . 6 . . 1 Rammed 9 | . . . . . . . . . . . . . . . . . 9 Targets Rammed 9 | . . . . . . . . . . . . . . . . . 9 Kicked . | . . . . . . . . . . . . . . . . . . Crushed . | . . . . . . . . . . . . . . . . . . Highest Temperature 482 | . 165 18 51 482 126 253 225 . . . . . . 62 . 298 51 Average Temperature 96 | . 56 8 24 163 53 76 93 . . . . . . 27 . 115 5 Received Heat Transfer 1957 | . 120 186 63 306 135 300 327 24 . 210 36 . . 109 . . 141 Effects 7 | . . . . 7 . . . . . . . . . . . . . Shutdowns 2 | . . . . 2 . . . . . . . . . . . . . Matter Decay 1 | . . . . 1 . . . . . . . . . . . . . Short Circuit 3 | . . . . 3 . . . . . . . . . . . . . Damage (minor) 1 | . . . . 1 . . . . . . . . . . . . . Siege Activations . | . . . . . . . . . . . . . . . . . . Martial Activations . | . . . . . . . . . . . . . . . . . . Shielding Activations . | . . . . . . . . . . . . . . . . . . Robots Disrupted . | . . . . . . . . . . . . . . . . . . Combat Hostiles . | . . . . . . . . . . . . . . . . . . Robots Corrupted . | . . . . . . . . . . . . . . . . . . Combat Hostiles . | . . . . . . . . . . . . . . . . . . Parts Fried . | . . . . . . . . . . . . . . . . . . Impact Corruptions . | . . . . . . . . . . . . . . . . . . Robots Melted 2 | . . . . . 1 1 . . . . . . . . . . . Combat Hostiles 2 | . . . . . 1 1 . . . . . . . . . . . Parts Melted 8 | . 1 2 . . 4 . . . . . . . . . . 1 . Heat Transferred 4804 | . 740 457 111 333 1332 1324 . . . . . . . 100 . 407 . Parts Sabotaged . | . . . . . . . . . . . . . . . . . . Parts Stolen . | . . . . . . . . . . . . . . . . . . Parts Stripped . | . . . . . . . . . . . . . . . . . . Power Chain Reactions . | . . . . . . . . . . . . . . . . . . Alert | -11 -10 -9 -8 -8 -7 -6 -6 -6 -5 -5 -5 -4 -4 -4 -3 -3 -2 ------- Run | Yrd Mat Mat Mat Gar Fac Fac Low Low Fac Ext Cet Fac Was Fac Res Tes Res Maximum Alert Level 2 | . 1 1 . 2 1 . . . . . . . . 2 1 . 1 Low Security (%) 71 | 100 86 93 100 20 80 100 . . 100 100 100 100 100 47 . 100 74 Level 1 18 | . 13 6 . 36 19 . . . . . . . . 15 100 . 25 Level 2 10 | . . . . 42 . . . . . . . . . 37 . . . Level 3 . | . . . . . . . . . . . . . . . . . . Level 4 . | . . . . . . . . . . . . . . . . . . Level 5 . | . . . . . . . . . . . . . . . . . . High Security . | . . . . . . . . . . . . . . . . . . Max Security . | . . . . . . . . . . . . . . . . . . Peak Influence 649 | . 236 216 83 569 298 78 . . . 15 . . . 649 297 176 262 Initial 298 | . . 93 83 10 298 46 . . . . . . . . 283 138 76 Average 166 | . 93 126 50 353 146 27 . . . 2 . . . 281 273 132 106 Influence Increases 3962 | . 399 547 53 639 445 226 30 . . 15 . . . 955 34 118 501 Destroy 0b10 Robot/C 1560 | . 220 360 20 380 260 120 . . . . . . . 180 . 20 . Destroy 0b10 Robot/NC 10 | . . 5 . . 5 . . . . . . . . . . . . Destroy Leader 280 | . 30 70 10 20 70 40 . . . . . . . 30 . 10 . Allied During Kill 18 | . . . . 18 . . . . . . . . . . . . . Successful Hack 217 | . 13 11 22 . 47 6 . . . . . . . 17 34 43 24 Disable Machine 195 | . . 60 . . 15 . . . . . . . . 105 . 15 . Anti-Garrison Action 150 | . . . . . . . . . . . . . . 150 . . . Destroy Structure 422 | . 1 26 1 56 3 . . . . . . . . 278 . . 57 Partial Spotted 60 | . . . . . 15 . . . . . . . . 30 . 15 . Lose Combat Pursuer 1050 | . 135 15 . 165 30 60 30 . . 15 . . . 165 . 15 420 Influence Decreases 3705 | . 176 572 235 86 919 259 92 . . 15 . . . 415 327 229 380 Entered New Map 1021 | . . 130 115 6 271 49 24 . . . . . . . 257 109 60 Time Decay 1984 | . 176 392 120 . 518 200 58 . . 15 . . . 155 70 110 170 Lost Part 500 | . . 50 . 40 120 10 10 . . . . . . 110 . 10 150 Lost Ally 50 | . . . . 40 10 . . . . . . . . . . . . Purge Threat 150 | . . . . . . . . . . . . . . 150 . . . Squads Dispatched 27 | . 2 1 . . 5 1 . . . 1 . . . 8 2 2 5 Investigation 7 | . 1 1 . . 1 . . . . . . . . 1 1 1 1 Extermination 9 | . . . . . 3 1 . . . . . . . 1 1 1 2 Reinforcement 8 | . 1 . . . 1 . . . . 1 . . . 3 . . 2 Assault 2 | . . . . . . . . . . . . . . 2 . . . Garrison 1 | . . . . . . . . . . . . . . 1 . . . Intercept . | . . . . . . . . . . . . . . . . . . Searches Triggered . | . . . . . . . . . . . . . . . . . . Construction Impeded 1 | . . . . . 1 . . . . . . . . . . . . Haulers Reinforced . | . . . . . . . . . . . . . . . . . . Active Scanning Responses . | . . . . . . . . . . . . . . . . . . Cargo Convoy Interrupts . | . . . . . . . . . . . . . . . . . . Stealth | -11 -10 -9 -8 -8 -7 -6 -6 -6 -5 -5 -5 -4 -4 -4 -3 -3 -2 --------- Run | Yrd Mat Mat Mat Gar Fac Fac Low Low Fac Ext Cet Fac Was Fac Res Tes Res Distress Signals 10 | . . 2 . . . . . . . . 1 . . . . . 7 Communications Jammed . | . . . . . . . . . . . . . . . . . . Distress Signals . | . . . . . . . . . . . . . . . . . . Times Spotted 207 | . 19 22 4 26 19 10 12 1 1 10 5 . 4 24 . 8 42 Peak Tracking Total 21 | . 4 5 3 6 4 4 5 1 1 8 5 . 4 10 . 6 21 Tactical Retreats 34 | . 4 1 . 9 2 2 2 . . 1 . . . 5 . 1 7 Traps | -11 -10 -9 -8 -8 -7 -6 -6 -6 -5 -5 -5 -4 -4 -4 -3 -3 -2 ------- Run | Yrd Mat Mat Mat Gar Fac Fac Low Low Fac Ext Cet Fac Was Fac Res Tes Res Traps Triggered 12 | . . 1 . 2 2 . . . . . . 1 . 1 1 1 3 Indirectly . | . . . . . . . . . . . . . . . . . . Trap Hack Attempts . | . . . . . . . . . . . . . . . . . . Triggered . | . . . . . . . . . . . . . . . . . . Disarmed . | . . . . . . . . . . . . . . . . . . Reprogrammed . | . . . . . . . . . . . . . . . . . . Reused . | . . . . . . . . . . . . . . . . . . Traps Extracted . | . . . . . . . . . . . . . . . . . . Installed . | . . . . . . . . . . . . . . . . . . Triggered . | . . . . . . . . . . . . . . . . . . Objects Rigged 4 | . . 1 . . . . . . . . . . . 3 . . . Exploded 2 | . . 1 . . . . . . . . . . . 1 . . . Machines | -11 -10 -9 -8 -8 -7 -6 -6 -6 -5 -5 -5 -4 -4 -4 -3 -3 -2 ---------- Run | Yrd Mat Mat Mat Gar Fac Fac Low Low Fac Ext Cet Fac Was Fac Res Tes Res Machines Disabled 14 | . . 4 . . 1 . . . . . . . . 8 . 1 . Max in Single Turn 2 | . . 2 . . 1 . . . . . . . . 2 . 1 . Garrison Access 1 | . . . . . . . . . . . . . . 1 . . . Machines Repaired . | . . . . . . . . . . . . . . . . . . Machines Dismantled 2 | . . 2 . . . . . . . . . . . . . . . Machines Sabotaged . | . . . . . . . . . . . . . . . . . . Overloaded Fab Kills . | . . . . . . . . . . . . . . . . . . Hacking | -11 -10 -9 -8 -8 -7 -6 -6 -6 -5 -5 -5 -4 -4 -4 -3 -3 -2 --------- Run | Yrd Mat Mat Mat Gar Fac Fac Low Low Fac Ext Cet Fac Was Fac Res Tes Res Machines Accessed 50 | . 3 7 8 3 6 2 1 . 1 . . 1 . 3 4 7 4 Terminals 30 | . 2 5 4 3 2 1 . . . . . 1 . 2 3 4 3 Fabricators 2 | . . . . . 1 . . . . . . . . 1 . . . Repair Stations 4 | . 1 . . . 1 1 . . . . . . . . . 1 . Recycling Units 5 | . . 1 2 . 1 . . . 1 . . . . . . . . Scanalyzers 7 | . . 1 1 . 1 . . . . . . . . . 1 2 1 Garrison Access 1 | . . . 1 . . . . . . . . . . . . . . Total Hacks 145 | . 11 27 29 6 18 6 1 . 1 . . 2 . 13 9 14 8 Successful 76 | . 6 13 15 3 9 5 1 . . . . . . 9 4 5 6 Failed 69 | . 5 14 14 3 9 1 . . 1 . . 2 . 4 5 9 2 Catastrophic 11 | . . 2 3 . 1 1 . . . . . . . . 1 3 . Database Lockouts . | . . . . . . . . . . . . . . . . . . Manual 73 | . 1 22 21 1 8 2 . . 1 . . 2 . 5 1 6 3 Terminals 99 | . 7 21 19 6 7 2 . . . . . 2 . 12 7 10 6 Fabricators 2 | . . . . . 1 . . . . . . . . 1 . . . Repair Stations 14 | . 4 . . . 5 4 . . . . . . . . . 1 . Recycling Units 11 | . . 3 5 . 2 . . . 1 . . . . . . . . Scanalyzers 17 | . . 3 4 . 3 . . . . . . . . . 2 3 2 Garrison Access 1 | . . . 1 . . . . . . . . . . . . . . Terminal Hacks 23 | . 3 2 1 3 1 . 1 . . . . . . 5 4 1 2 Record 5 | . . . . . . . 1 . . . . . . . 3 . 1 Prototype ID Bank 1 | . 1 . . . . . . . . . . . . . . . . Open Door 2 | . . . . 1 . . . . . . . . . . . . 1 Emergency Access Points 1 | . . . . 1 . . . . . . . . . . . . . Terminal Index 1 | . . 1 . . . . . . . . . . . . . . . Recycling Unit Index 1 | . . 1 . . . . . . . . . . . . . . . Alert Level 2 | . . . . . . . . . . . . . . 1 . 1 . Unreport Threat 1 | . . . . . . . . . . . . . . 1 . . . Locate Traps 5 | . 2 . 1 . 1 . . . . . . . . 1 . . . Zone Layout 3 | . . . . . . . . . . . . . . 2 1 . . Garrison Registry 1 | . . . . 1 . . . . . . . . . . . . . Fabricator Hacks . | . . . . . . . . . . . . . . . . . . Repair Station Hacks 9 | . 2 . . . 2 4 . . . . . . . . . 1 . Scan Component 4 | . 1 . . . 1 2 . . . . . . . . . . . Repair 4 | . 1 . . . 1 2 . . . . . . . . . . . Refit 1 | . . . . . . . . . . . . . . . . 1 . Recycling Unit Hacks 2 | . . 1 1 . . . . . . . . . . . . . . Report Inventory 1 | . . . 1 . . . . . . . . . . . . . . Retrieve Components 1 | . . 1 . . . . . . . . . . . . . . . Scanalyzer 10 | . . 2 4 . 3 . . . . . . . . . . . 1 Insert Component 1 | . . . . . 1 . . . . . . . . . . . . Analyze 1 | . . . . . 1 . . . . . . . . . . . . Retrieve Study 8 | . . 2 4 . 1 . . . . . . . . . . . 1 Garrison Access Hacks 1 | . . . 1 . . . . . . . . . . . . . . Unlock Access 1 | . . . 1 . . . . . . . . . . . . . . Unauthorized Hacks 31 | . 1 8 8 . 3 1 . . . . . . . 4 . 3 3 Terminals 28 | . 1 7 6 . 3 1 . . . . . . . 4 . 3 3 Track 5 | . . 1 1 . 1 . . . . . . . . . . 1 1 Botnet 14 | . . 4 4 . 1 1 . . . . . . . 2 . 1 1 Detonate 3 | . 1 1 . . . . . . . . . . . 1 . . . Operators 6 | . . 1 1 . 1 . . . . . . . . 1 . 1 1 Fabricators . | . . . . . . . . . . . . . . . . . . Repair Stations . | . . . . . . . . . . . . . . . . . . Recycling Units 3 | . . 1 2 . . . . . . . . . . . . . . Reject 3 | . . 1 2 . . . . . . . . . . . . . . Scanalyzers . | . . . . . . . . . . . . . . . . . . Garrison Access . | . . . . . . . . . . . . . . . . . . Data Cores Recovered . | . . . . . . . . . . . . . . . . . . Used . | . . . . . . . . . . . . . . . . . . Hacking Detections 44 | . 2 6 7 3 6 1 . . 1 . . 1 . 3 4 7 3 Full Trace Events 3 | . 1 . . . . . . . . . . . . 1 . 1 . Feedback Events . | . . . . . . . . . . . . . . . . . . Feedback Blocked . | . . . . . . . . . . . . . . . . . . Robot Schematics Acquired . | . . . . . . . . . . . . . . . . . . Robots Built . | . . . . . . . . . . . . . . . . . . Authchips . | . . . . . . . . . . . . . . . . . . Time . | . . . . . . . . . . . . . . . . . . Total Robot Build Rating . | . . . . . . . . . . . . . . . . . . Part Schematics Acquired 1 | . . . . . 1 . . . . . . . . . . . . Parts Built . | . . . . . . . . . . . . . . . . . . Authchips . | . . . . . . . . . . . . . . . . . . Time . | . . . . . . . . . . . . . . . . . . Total Part Build Rating . | . . . . . . . . . . . . . . . . . . Part Studies Acquired 8 | . . 2 4 . 1 . . . . . . . . . . . 1 Parts Repaired 4 | . 1 . . . 1 2 . . . . . . . . . . . Time 134 | . 26 . . . 16 92 . . . . . . . . . . . Parts Recycled . | . . . . . . . . . . . . . . . . . . Recycled Matter . | . . . . . . . . . . . . . . . . . . Retrieved Matter . | . . . . . . . . . . . . . . . . . . Retrieved Components 3 | . . 3 . . . . . . . . . . . . . . . Parts Scanalyzed 1 | . . . . . 1 . . . . . . . . . . . . Part Schematics Acquired 1 | . . . . . 1 . . . . . . . . . . . . Parts Damaged . | . . . . . . . . . . . . . . . . . . Bothacking | -11 -10 -9 -8 -8 -7 -6 -6 -6 -5 -5 -5 -4 -4 -4 -3 -3 -2 ------------ Run | Yrd Mat Mat Mat Gar Fac Fac Low Low Fac Ext Cet Fac Was Fac Res Tes Res Used RIF Installer 2 | . . . . 2 . . . . . . . . . . . . . Alert ID Control 1 | . . . . 1 . . . . . . . . . . . . . Robots Hacked 3 | . . . . . 2 . 1 . . . . . . . . . . Non-combat 1 | . . . . . 1 . . . . . . . . . . . . Combat 2 | . . . . . 1 . 1 . . . . . . . . . . Robot Hacks Applied 4 | . . . . . 3 . 1 . . . . . . . . . . parse_system 3 | . . . . . 2 . 1 . . . . . . . . . . formatsys_high 1 | . . . . . 1 . . . . . . . . . . . . Relay Couplers Released 2 | . . . . . . . . . . . . . . 2 . . . Machine Destruction 2 | . . . . . . . . . . . . . . 2 . . . Attached 4 | . . . . . 2 . . . . . . . . 2 . . . Fabnet Peak Effective % . | . . . . . . . . . . . . . . . . . . Robots Rewired . | . . . . . . . . . . . . . . . . . . Allies Hacked . | . . . . . . . . . . . . . . . . . . Hacks Repelled . | . . . . . . . . . . . . . . . . . . Allies | -11 -10 -9 -8 -8 -7 -6 -6 -6 -5 -5 -5 -4 -4 -4 -3 -3 -2 -------- Run | Yrd Mat Mat Mat Gar Fac Fac Low Low Fac Ext Cet Fac Was Fac Res Tes Res Total Allies 4 | . . . . 2 1 . . . . . . . 1 . . . . Largest Group 2 | . . . . 2 1 . . . . . . . 1 . . . . Highest-Rated Group 78 | . . . . 78 26 . . . . . . . 46 . . . . Highest-Rated Ally 46 | . . . . 39 26 . . . . . . . 46 . . . . Total Orders . | . . . . . . . . . . . . . . . . . . Ally Attacks 29 | . . . . 27 . . . . . . . . 2 . . . . Total Damage 394 | . . . . 355 . . . . . . . . 39 . . . . Kills 3 | . . . . 3 . . . . . . . . . . . . . Allies Corrupted . | . . . . . . . . . . . . . . . . . . Allies Melted . | . . . . . . . . . . . . . . . . . . Intel | -11 -10 -9 -8 -8 -7 -6 -6 -6 -5 -5 -5 -4 -4 -4 -3 -3 -2 ------- Run | Yrd Mat Mat Mat Gar Fac Fac Low Low Fac Ext Cet Fac Was Fac Res Tes Res Active Infowar (turns) 3595 | . 409 664 244 6 1400 225 . . 1 . . . . 67 144 238 197 Optics 683 | . . . . . 458 225 . . . . . . . . . . . Sensors 2472 | . . 602 244 6 974 . . . . . . . . 67 144 238 197 Seismic 471 | . 409 62 . . . . . . . . . . . . . . . Jamming 1 | . . . . . . . . . 1 . . . . . . . . Robot Analysis Total . | . . . . . . . . . . . . . . . . . . Derelict Logs Recovered 2 | . . . . . . . 1 1 . . . . . . . . . Drone Launches . | . . . . . . . . . . . . . . . . . . Drone Recoveries . | . . . . . . . . . . . . . . . . . . Exploration | -11 -10 -9 -8 -8 -7 -6 -6 -6 -5 -5 -5 -4 -4 -4 -3 -3 -2 ------------- Run | Yrd Mat Mat Mat Gar Fac Fac Low Low Fac Ext Cet Fac Was Fac Res Tes Res Turns Passed 6560 | 4 427 920 244 1149 1426 443 503 38 53 93 53 82 31 349 144 238 363 Spaces Moved 6513 | 3 226 621 200 646 1030 212 382 55 153 193 54 125 78 753 314 663 805 Core 433 | . . . . . 1 . 212 6 . 81 54 45 . . . . 34 Treads 425 | . . . . 283 . . 133 . . 9 . . . . . . . Legs 1009 | 3 226 62 . 201 478 39 . . . . . . . . . . . Wheels 1367 | . . 559 200 162 236 173 37 . . . . . . . . . . Hover . | . . . . . . . . . . . . . . . . . . Flight 3279 | . . . . . 315 . . 49 153 103 . 80 78 753 314 663 771 Fastest Speed 22 | 120 120 105 95 110 26 95 50 32 32 32 100 40 40 22 27 27 28 Average Speed 76 | 120 120 106 107 146 104 103 111 57 32 46 100 61 40 33 37 27 34 Slowest Speed 515 | 120 120 120 110 330 515 120 152 150 32 160 100 100 40 40 58 28 122 Overloaded Moves . | . . . . . . . . . . . . . . . . . . Propulsion Burnouts . | . . . . . . . . . . . . . . . . . . Robots Hopped 57 | . . . . . 1 . . . 1 4 . . . 7 1 11 32 Potential Cave-ins 1 | . . . . . . . . . . . . . . 1 . . . Cave-ins Triggered . | . . . . . . . . . . . . . . . . . . Exploration Rate (%) 29 | 2 43 40 23 72 28 5 61 12 4 45 23 3 65 18 8 62 25 Regions Visited 17 Branch Regions 5 Pre-discovered Areas 1 | . . . . . . . 1 . . . . . . . . . . Known Exits Taken 7 | . . 1 1 . 1 1 . . . . . . . 1 1 1 . Unknown Exits Taken 7 | 1 1 . . . . . 1 1 1 1 1 . . . . . . Scrap Searched 1 | . . . . . . . 1 . . . . . . . . . . Spaces Dug . | . . . . . . . . . . . . . . . . . . Terrain Destroyed 219 | . . 21 1 4 2 . . . . . . . . 167 . . 24 Melee . | . . . . . . . . . . . . . . . . . . Projectile 8 | . . . 1 4 2 . . . . . . . . . . . 1 AOE 211 | . . 21 . . . . . . . . . . . 167 . . 23 Terrain Rammed . | . . . . . . . . . . . . . . . . . . Walls Destroyed . | . . . . . . . . . . . . . . . . . . Machines Disabled . | . . . . . . . . . . . . . . . . . . Actions | -11 -10 -9 -8 -8 -7 -6 -6 -6 -5 -5 -5 -4 -4 -4 -3 -3 -2 --------- Run | Yrd Mat Mat Mat Gar Fac Fac Low Low Fac Ext Cet Fac Was Fac Res Tes Res Total 7520 | 3 334 762 221 756 1264 391 416 60 155 192 53 128 77 828 342 684 854 Wait 351 | . 67 50 3 . 68 124 . . . . . . . 18 3 1 17 Move 6387 | 2 225 620 199 644 1027 211 381 54 150 184 53 125 77 739 311 640 745 Hop 52 | . . . . . 1 . . . 1 4 . . . 6 1 11 28 Pick Up 95 | . 8 10 6 8 15 6 2 1 1 1 . . . 11 9 9 8 Fast Attach 35 | . . . . 4 10 2 1 1 1 2 . 3 . 8 1 . 2 Attach 75 | . 1 7 2 1 11 7 3 3 1 . . . . 16 10 2 11 Detach 16 | . . . . . 4 . . 1 1 . . . . 4 2 2 2 Swap 44 | 1 3 7 4 13 9 3 . . . . . . . . . . 4 Drop 47 | . 5 3 3 10 13 . . . . 1 . . . . 5 1 6 Fire 307 | . 25 46 4 59 105 37 2 . . . . . . 15 . 13 1 Melee 28 | . . 2 . . . 1 25 . . . . . . . . . . Ram 9 | . . . . . . . . . . . . . . . . . 9 Kick . | . . . . . . . . . . . . . . . . . . Crush . | . . . . . . . . . . . . . . . . . . Escape Stasis 53 | . . . . 16 . . . . . . . . . 11 . 5 21 Rewire 3 | . . . . . 1 . 2 . . . . . . . . . . Trap . | . . . . . . . . . . . . . . . . . . Miscellaneous 18 | . . 17 . 1 . . . . . . . . . . . . . Route ------- -11/Scrapyard -10/Materials -9/Materials -8/Materials -8/Garrison (discovered 3 exits: *Fac x3) -7/Factory (discovered 2 exits: *Fac / *Low) -6/Factory -6/Lower Caves -6/Lower Caves -5/Factory (discovered 2 exits: *Fac / [*Ext]) -5/Extension (discovered 2 exits: *Fac / [*Cet]) -5/Cetus -4/Factory -4/Waste -4/Factory -3/Research -3/Testing -2/Research (discovered 1 exit: [*Qua]) History --------- Turn | Location | Event 1 | -11/Scrapyard | Discovered new exit (range 3) 5 | -11/Scrapyard | Entered Materials 299 | -10/Materials | Repaired Ion Engine 317 | -10/Materials | Build established: Mutant 398 | -10/Materials | Discovered new exit (range 11) 432 | -10/Materials | Entered another Materials area 432 | -9/Materials | Evolved 2 slots: Propulsion x1, Utility x1 545 | -9/Materials | Lost 4 parts (1n1u2w) 1221 | -9/Materials | Discovered new exit (range 10) 1302 | -9/Materials | Identified exit to Materials 1352 | -9/Materials | Entered another Materials area 1352 | -8/Materials | Evolved 2 slots: Propulsion x1, Utility x1 1554 | -8/Materials | Identified exit to Garrison 1596 | -8/Materials | Entered Garrison 1642 | -8/Garrison | Triggered checkpoint 1685 | -8/Garrison | Discovered new exit (range 64) 1685 | -8/Garrison | Discovered new exit (range 76) 1685 | -8/Garrison | Discovered new exit (range 51) 1737 | -8/Garrison | Rescued a captive Derelict 1738 | -8/Garrison | Rescued a captive Derelict 1827 | -8/Garrison | Triggered checkpoint 2190 | -8/Garrison | Identified exit to Factory 2285 | -8/Garrison | Build established: Scavenger-Mutant 2382 | -8/Garrison | Triggered checkpoint 2433 | -8/Garrison | Lost 3 parts (2n1u) 2608 | -8/Garrison | Installed Relay Interface Framework 2682 | -8/Garrison | Expanded RIF knowledge: Alert ID Control 2745 | -8/Garrison | Entered Factory 2745 | -7/Factory | Evolved 2 slots: Utility x2 2881 | -7/Factory | Lost 4 parts (2n2w) 2980 | -7/Factory | Discovered new exit (range 7) 3031 | -7/Factory | Identified exit to Lower Caves 3415 | -7/Factory | Build established: Mutant 3781 | -7/Factory | Repaired VTOL Module+ 3827 | -7/Factory | Discovered new exit (range 20) 3939 | -7/Factory | Core integrity fell below 50% 3945 | -7/Factory | Lost 4 parts (1p2n1u) 3984 | -7/Factory | Identified exit to Factory 4171 | -7/Factory | Entered another Factory area 4171 | -6/Factory | Evolved 2 slots: Propulsion x2 4397 | -6/Factory | System corruption reached 10% 4430 | -6/Factory | Lost 5 parts (1n2u2w) 4466 | -6/Factory | Repaired VTOL Module+ 4531 | -6/Factory | Repaired Imp. VTOL Module 4597 | -6/Factory | Discovered new exit (range 5) 4600 | -6/Factory | Identified exit to Lower Caves 4614 | -6/Factory | Entered Lower Caves 4652 | -6/Lower Caves | Build established: Scavenger-Mutant 4687 | -6/Lower Caves | Attacked by a faux Warlord 4718 | -6/Lower Caves | System corruption reached 30% 4760 | -6/Lower Caves | Lost 10 parts (1p2n5u2w) 4931 | -6/Lower Caves | Released all parts (4) 4963 | -6/Lower Caves | Attracted the attention of an 0b10 checkpoint 4963 | -6/Lower Caves | Core integrity fell below 50% 4991 | -6/Lower Caves | Entered a destroyed Warlord outpost 5021 | -6/Lower Caves | Build established: Mutant 5094 | -6/Lower Caves | Discovered new exit (range 14) 5117 | -6/Lower Caves | Entered another Lower Caves area 5148 | -6/Lower Caves | Attracted the attention of an 0b10 checkpoint 5149 | -6/Lower Caves | Learned Factory terminal intel 5153 | -6/Lower Caves | Discovered new exit (range 7) 5155 | -6/Lower Caves | Entered Factory 5155 | -5/Factory | Evolved 2 slots: Power x1, Utility x1 5156 | -5/Factory | Loaded intel: 28 terminal locations 5197 | -5/Factory | Discovered new exit (range 8) 5203 | -5/Factory | Discovered new exit (range 16) 5208 | -5/Factory | Entered Extension 5232 | -5/Extension | Spotted B-75 Beast 5235 | -5/Extension | Spotted B-75 Beast 5273 | -5/Extension | Lost 3 parts (2n1u) 5278 | -5/Extension | Discovered new exit (range 15) 5278 | -5/Extension | Discovered new exit (range 15) 5293 | -5/Extension | Core integrity fell below 50% 5301 | -5/Extension | Entered Cetus 5314 | -5/Cetus | Spotted Cetus Guard 5315 | -5/Cetus | Spotted Cetus Guard 5317 | -5/Cetus | Spotted Cetus Guard 5317 | -5/Cetus | Spotted Cetus Guard 5339 | -5/Cetus | Discovered new exit (range 15) 5354 | -5/Cetus | Entered Factory 5354 | -4/Factory | Evolved 2 slots: Propulsion x2 5436 | -4/Factory | Sucked down chute 5436 | -4/Factory | Entered Waste 5437 | -4/Waste | Met a frightened Derelict 5444 | -4/Waste | Spotted C-40 Crusher 5445 | -4/Waste | Spotted C-40 Crusher 5446 | -4/Waste | Spotted C-40 Crusher 5450 | -4/Waste | Spotted C-40 Crusher 5453 | -4/Waste | Spotted C-40 Crusher 5455 | -4/Waste | Spotted C-40 Crusher 5456 | -4/Waste | Crushed by Compactor (1 part destroyed, 1 dropped) 5463 | -4/Waste | Discovered new exit (range 11) 5467 | -4/Waste | Identified exit to Factory 5467 | -4/Waste | Entered Factory 5531 | -4/Factory | Spotted B-86 Titan 5663 | -4/Factory | Garrison activated, responded to threat 5666 | -4/Factory | Lost 5 parts (1p1n2u1w) 5764 | -4/Factory | Lost 3 parts (3n) 5815 | -4/Factory | Discovered new exit (range 4) 5816 | -4/Factory | Identified exit to Research 5816 | -4/Factory | Entered Research 5816 | -3/Research | Evolved 2 slots: Utility x2 5853 | -3/Research | Spotted B-86 Titan 5932 | -3/Research | Discovered new exit (range 6) 5935 | -3/Research | Identified exit to Testing 5960 | -3/Research | Entered Testing 6002 | -3/Testing | Found Prototype Energy Cannon 6093 | -3/Testing | Spotted Striker 6093 | -3/Testing | Spotted Striker 6187 | -3/Testing | Discovered new exit (range 7) 6189 | -3/Testing | Identified exit to Research 6198 | -3/Testing | Entered Research 6198 | -2/Research | Evolved 2 slots: Utility x1, Weapon x1 6221 | -2/Research | Identified Hpw. Disruptor Cannon 6354 | -2/Research | Spotted B-90 Cyclops 6497 | -2/Research | Lost 14 parts (2p6n4u2w) 6512 | -2/Research | Core integrity fell below 50% 6541 | -2/Research | System corruption reached 10% 6544 | -2/Research | Core integrity fell below 20% 6559 | -2/Research | Discovered new exit (range 9) 6561 | -2/Research | Destroyed by P-80 Master with Gamma Rifle Last Messages --------------- 06543_ Slammed into P-80 Master. 06543_ Destabilizing: Core damaged (-29). 06544_ Slammed into P-80 Master. 06544_ P-80 Master knocked back. 06545_ Slammed into P-80 Master. 06548_ Adv. Terrain Scan Processor broken. 06548_ Destabilizing: Short circuit. 06552_ Triggered Alarm Trap. 06552_ An alarm sounds. 06552_ ALERT: Alarm triggered, dispatching investigation squad. 06554_ ALERT: Potential suspicious activity detected, Programmers report to Research Zone 7M. 06559_ Connecting with Door Terminal... >>Open(Door) Sealed Blast Doors opened. 06559_ EXIT=FOUND 06561_ System corrupted: Substantial component data lost. Map ----- +----------------------------------------------------+ | | | | | | | | | | | ?????????????????????????????????????????????????? | | ?????????????????????????????????????????????????? | | ??###########????????????????????????????????????? | | ??# ! #????????????????????????????????????? | | ??# #????????????????????????????????????? | | ??# """ #????????????????????????????????????? | | ??# """ ! #????????????????????????????????????? | | ??#[ """ #????????????????????????????????????? | | ??# #????????????????????????????????????? | | ??? ?????????????????????????????????????? | | ????? ???????????????????????????????????????? | | ?????##/############?????????????????????????????? | | ?????# / ! #?????????????????????????????? | | ###### #### #?????????????????????????????? | | #??# ########??????????????????????? | | ### #??# ## # # #??????????????????????? | | ??# #??# ## # # #######????????????????? | | ??# #??# # """""#????????????????? | | ### #######p### "" ""#????????????????? | | p "#????????????????? | | @ < ""#????????????????? | | ""#????????????????? | | ################## "" ""#????????????????? | | #????????????????#T """""#????????????????? | | #????????????????## # # #######????????????????? | | ########??????????# # # #??????????????????????? | | #?????????###################???????????? | | #?????????# """"" #???????????? | | #?????????# """F"" #???????????? | | ##????????# """ """ "" #???????????? | | ########## """ #???????????? | | / """ #???????????? | | ########## #???????????? | | # ##### #????????# #???????????? | | #+#???# #????????#########/#########???????????? | | ???# #?????????????? #??????????????????? | | ??# ############# #??????????????????? | | "" ?# #??????????????????? | | T"" ## #??????????????????? | | ""o ## #??????????????????? | | ?####### ######### #??????????????????? | | ? #??????# #???? ## #??????????????????? | | ? #??????# #?? ## #??????????????????? | | ????##??##### # ## ###????????????????? | | ??????# + ## ?????????????????? | +----------------------------------------------------+ Best States ------------- Heat Dissipation 51 Energy Generation 33 Energy Capacity 310 Matter Stores 300 Matter Capacity 300 Sight Range 20 Robot Scan Range 16 Terrain Scan Density 210 Armor Coverage 375 Resistance: TH 25 Point Defense Rating 240 Evasion (%) 74 Targeting Accuracy 8 Recoil Reduction 4 Offensive Hacking 10 Defensive Hacking 10 Relay Coupler Types 2 Relay Coupler Value 57 Authchip Count 1 Item Schematics ----------------- Hrd. Medium Armor Plating | -7/Factory | Scanalyzed Robot Schematics ------------------ None Fabricated ------------ Nothing Repaired ---------- Ion Engine | 63% | -10/Materials VTOL Module | 28% | -7/Factory VTOL Module | 16% | -6/Factory Imp. VTOL Module | 10% | -6/Factory Studied --------- Assault Rifle | -9/Materials | Hacked Shotgun | -9/Materials | Hacked Imp. Ion Engine | -8/Materials | Hacked Datajack | -8/Materials | Hacked Plasma Cutter | -8/Materials | Hacked Arm. Wheel | -8/Materials | Hacked VTOL Module | -7/Factory | Hacked Impulse Thruster Array | -2/Research | Hacked Alien Tech Used ----------------- None Achievements -------------- Assimilation Complete Join The Dark Side Mindtrick You Will Be Upgraded Challenges ------------ None Game ------ Seed ProtonWeaponsBooster Manual? 0 Play Time 01:28:59 Cumulative 61.4 hours Start 2025.12.19 @ 19:21:41 End 2025.12.19 @ 20:57:34 Sessions 1 Manual Loads 0 Difficulty Rogue Special Mode None Game No. 90 Rogue 68 Adventurer 20 Explorer 2 Win Type - Total 0 Types 0/0/0/0/0/0/0/0/0/0 Lore% 42 Gallery% 37 Achievement% 25 Wizard Run 0 Options --------- Layout 1 ASCII 0 Keyboard 0 Movement Numpad Keybinds 0 Fullscreen 2 Font 24/Smallcaps Map View 50x35 Zoom Use 0% Tactical HUD 1 Map Filters NONE Filters NONE Steam 1 RUN: 200b9ef0-9db7-4b8c-a71b-e6377cebc8af